fUSD/lending_fUSD_20251023
["ID","MTS","AMOUNT","RATE_DAILY","PERIOD"]
[392153053,1761215444588,-688.49839244,0.00044999,120]
[392153054,1761215444598,-500.0,0.00044999,120]
[392153055,1761215444608,-500.0,0.00044999,120]
[392153056,1761215444618,-250.0,0.00044999,120]
[392153057,1761215444628,-500.0,0.00044999,120]
[392153058,1761215444638,-500.0,0.00044999,120]
[392153059,1761215444647,-713.97283296,0.00044999,120]
[392153060,1761215444657,-250.0,0.00044999,120]
[392153061,1761215444667,-500.0,0.00044999,120]
[392153062,1761215444676,-250.0,0.00044999,120]
[392153063,1761215444686,-500.0,0.00044999,120]
[392153064,1761215444695,-500.0,0.00044999,120]
[392153065,1761215444705,-500.0,0.00044999,120]
[392153066,1761215444714,-250.0,0.00044999,120]
[392153067,1761215444725,-740.38982778,0.00044999,120]
[392153068,1761215444734,-500.0,0.00044999,120]
[392153069,1761215444744,-250.0,0.00044999,120]
[392153070,1761215444754,-500.0,0.00044999,120]
[392153071,1761215444764,-500.0,0.00044999,120]
[392153072,1761215444774,-250.0,0.00044999,120]
[392153073,1761215444783,-767.7842514,0.00044999,120]
[392153074,1761215444793,-500.0,0.00044999,120]
[392153075,1761215444803,-500.0,0.00044999,120]
[392153076,1761215444813,-250.0,0.00044999,120]
[392153077,1761215444823,-500.0,0.00044999,120]
[392153078,1761215444832,-500.0,0.00044999,120]
[392153079,1761215444842,-250.0,0.00044999,120]
[392153080,1761215444852,-796.19226871,0.00044999,120]
[392153081,1761215444861,-500.0,0.00044999,120]
[392153082,1761215444871,-500.0,0.00044999,120]
[392153083,1761215444882,-250.0,0.00044999,120]
[392153084,1761215444892,-250.0,0.00044999,120]
[392153085,1761215444902,-500.0,0.00044999,120]
[392153086,1761215444911,-500.0,0.00044999,120]
[392153087,1761215444921,-250.0,0.00044999,120]
[392153088,1761215444930,-500.0,0.00044999,120]
[392153089,1761215444940,-825.65138265,0.00044999,120]
[392153090,1761215444950,-500.0,0.00044999,120]
[392153091,1761215444959,-500.0,0.00044999,120]
[392153092,1761215444968,-250.0,0.00044999,120]
[392153093,1761215444978,-500.0,0.00044999,120]
[392153094,1761215444988,-250.0,0.00044999,120]
[392153095,1761215444998,-500.0,0.00044999,120]
[392153096,1761215445009,-500.0,0.00044999,120]
[392153097,1761215445019,-500.0,0.00044999,120]
[392153098,1761215445029,-250.0,0.00044999,120]
[392153099,1761215445039,-500.0,0.00044999,120]
[392153100,1761215445049,-250.0,0.00044999,120]
[392153101,1761215445059,-500.0,0.00044999,120]
[392153102,1761215445068,-500.0,0.00044999,120]
[392153103,1761215445078,-250.0,0.00044999,120]
[392153104,1761215445088,-250.0,0.00044999,120]
[392153105,1761215445097,-500.0,0.00044999,120]
[392153106,1761215445106,-500.0,0.00044999,120]
[392153107,1761215445115,-500.0,0.00044999,120]
[392153108,1761215445124,-250.0,0.00044999,120]
[392153109,1761215445134,-500.0,0.00044999,120]
[392153110,1761215445143,-250.0,0.00044999,120]
[392153111,1761215445155,-564.84999782,0.00044999,120]
[392153112,1761215445165,-250.0,0.00044999,120]
[392153113,1761215445175,-500.0,0.00044999,120]
[392153114,1761215445184,-250.0,0.00044999,120]
[392153115,1761215445195,-600.0,0.00044999,120]
[392153116,1761215445204,-250.0,0.00044999,120]
[392153117,1761215445214,-600.0,0.00044999,120]
[392153118,1761215445224,-250.0,0.00044999,120]
[392153119,1761215445233,-600.0,0.00044999,120]
[392153120,1761215445242,-250.0,0.00044999,120]
[392153121,1761215445251,-600.0,0.00044999,120]
[392153122,1761215445260,-250.0,0.00044999,120]
[392153123,1761215445270,-600.0,0.00044999,120]
[392153124,1761215445280,-500.0,0.00044999,120]
[392153125,1761215445290,-600.0,0.00044999,120]
[392153126,1761215445299,-500.0,0.00044999,120]
[392153127,1761215445308,-600.0,0.00044999,120]
[392153128,1761215445318,-500.0,0.00044999,120]
[392153129,1761215445327,-600.0,0.00044999,120]
[392153130,1761215445339,-500.0,0.00044999,120]
[392153131,1761215445349,-600.0,0.00044999,120]
[392153132,1761215445359,-250.0,0.00044999,120]
[392153133,1761215445368,-500.0,0.00044999,120]
[392153134,1761215445377,-600.0,0.00044999,120]
[392153135,1761215445388,-250.0,0.00044999,120]
[392153136,1761215445397,-500.0,0.00044999,120]
[392153137,1761215445407,-500.0,0.00044999,120]
[392153138,1761215445418,-250.0,0.00044999,120]
[392153139,1761215445428,-518.5,0.00044999,120]
[392153140,1761215445438,-500.0,0.00044999,120]
[392153141,1761215445447,-250.0,0.00044999,120]
[392153142,1761215445457,-537.6845,0.00044999,120]
[392153143,1761215445470,-500.0,0.00044999,120]
[392153144,1761215445480,-250.0,0.00044999,120]
[392153145,1761215445490,-557.5788265,0.00044999,120]
[392153146,1761215445500,-500.0,0.00044999,120]
[392153147,1761215445510,-250.0,0.00044999,120]
[392153148,1761215445520,-578.20924308,0.00044999,120]
[392153149,1761215445529,-250.0,0.00044999,120]
[392153150,1761215445538,-599.60298507,0.00044999,120]
[392153151,1761215445547,-250.0,0.00044999,120]
[392153152,1761215445556,-621.78829552,0.00044999,120]
[392153153,1761215445565,-250.0,0.00044999,120]
[392153154,1761215445574,-644.79446246,0.00044999,120]
[392153155,1761215445584,-250.0,0.00044999,120]
[392153156,1761215445594,-668.65185757,0.00044999,120]
[392153157,1761215445604,-250.0,0.00044999,120]
[392153158,1761215445614,-693.3919763,0.00044999,120]
[392153159,1761215445623,-250.0,0.00044999,120]
[392153160,1761215445633,-719.04747942,0.00044999,120]
[392153161,1761215445642,-250.0,0.00044999,120]
[392153162,1761215445652,-349.19602115,0.00045,120]
[392153163,1761215445662,-708899.83285139,0.00045,120]
[392153164,1761215445672,-1000000.0,0.00045,120]
[392153165,1761215445681,-6363.7,0.00045,30]
[392153166,1761215445691,-457000.0,0.00045,120]
[392153167,1761215445701,-29212.12,0.00045,14]
[392153168,1761215445710,-1971.89,0.00045,14]
[392153169,1761215445720,-200.0,0.00045,7]
[392153170,1761215445731,-1753.43,0.00045,120]
[392153171,1761215445741,-3514.41935,0.00045,26]
[392153172,1761215445751,-16396.65791265,0.00045,120]
[392153173,1761215445760,-1000.0,0.00045,30]
[392153174,1761215445770,-201.5261164,0.00045028,3]
[392153175,1761215445780,-150.0,0.00045028,3]
[392153176,1761215445789,-150.0,0.00045028,3]
[392153177,1761215445799,-150.0,0.00045028,2]
[392153178,1761215445808,-150.0,0.00045028,3]
[392153179,1761215445818,-500.0,0.00045028,120]
[392153180,1761215445827,-150.0,0.00045028,3]
[392153181,1761215445837,-150.0,0.00045028,3]
[392153182,1761215445847,-150.0,0.00045028,3]
[392153183,1761215445861,-150.0,0.00045028,3]
[392153184,1761215445871,-150.0,0.00045028,3]
[392153185,1761215445881,-150.0,0.00045028,3]
[392153186,1761215445891,-150.0,0.00045028,3]
[392153187,1761215445902,-150.0,0.00045028,3]
[392153188,1761215445911,-150.0,0.00045028,3]
[392153189,1761215445922,-500.0,0.00045028,3]
[392153190,1761215445932,-150.0,0.00045028,3]
[392153191,1761215445943,-150.0,0.00045028,3]
[392153192,1761215445953,-1395.4620323,0.00045036,2]
[392153193,1761215445962,-183.46,0.00045045,14]
[392153194,1761215445972,-1000000.0,0.0004505,120]
[392153195,1761215445982,-527101.77765317,0.0004505,120]
[392153197,1761215446281,-1070.34121174,0.00043976,50]
[392153198,1761215446291,-1000.99657265,0.00043976,50]
[392153199,1761215446300,-631.15593999,0.00044999,120]
[392153200,1761215446310,-250.0,0.00044999,120]
[392153201,1761215446319,-250.0,0.00044999,120]
[392153202,1761215446328,-250.0,0.00044999,120]
[392153203,1761215446337,-44485.12697844,0.0004505,120]
[392153204,1761215446353,-539.8989428,0.0004505,120]
[392153205,1761215446454,-168.0,0.00034898,2]
[392153206,1761215446463,-1118.66160578,0.00043976,50]
[392153207,1761215446475,-260.91872561,0.00044957,120]
[392153208,1761215446485,-260.91872561,0.00044976,120]
[392153209,1761215446494,-260.91872561,0.00044988,120]
[392153210,1761215446503,-260.91872561,0.00044991,120]
[392153211,1761215446513,-250.0,0.00044999,120]
[392153212,1761215446522,-250.0,0.00044999,120]
[392153213,1761215446532,-250.0,0.00044999,120]
[392153214,1761215446542,-250.0,0.00044999,120]
[392153215,1761215446551,-7714.73753348,0.0004505,120]
[392153216,1761215446592,-554.996498,0.0004505,120]
[392153217,1761215446608,-21938.0,0.0004505,120]
[392153218,1761215446620,-1064.57225848,0.0004505,120]
[392153219,1761215446792,-494.61771879,0.0004505,120]
[392153220,1761215446809,-651.98542784,0.0004505,120]
[392153222,1761215446873,-340.53380289,0.0004505,120]
[392153223,1761215446884,-2344.03675867,0.0004505,120]
[392153227,1761215459992,500.0,0.00024848,2]
[392153231,1761215818344,-297.91499461,0.00021367,2]
[392153232,1761215821761,-346.08254419,0.00021367,2]
[392153233,1761215908395,-277.16581691,0.00021367,2]
[392153234,1761215910387,-49.75664429,0.00021367,2]
[392153235,1761215910409,-102.66062791,0.00022492,2]
[392153236,1761215911968,-212.0,0.00022492,2]
[392153237,1761215915055,-250.28390309,0.00022492,2]
[392153238,1761215917526,-169.70952864,0.00022492,2]
[392153239,1761215920784,-236.26594036,0.00022492,2]
[392153240,1761215920819,-152.64666298,0.00023616,2]
[392153241,1761215938865,-239.20162115,0.00023616,2]
[392153242,1761215943816,-194.71609691,0.00023616,2]
[392153245,1761216105236,-230.22874136,0.00023616,2]
[392153246,1761216223382,-154.1268776,0.00023616,2]
[392153247,1761216223403,-95.89733238,0.00023897,2]
[392153248,1761216226126,-179.0,0.00023897,2]
[392153249,1761216253829,-153.28503906,0.00023897,2]
[392153250,1761216350127,-67.75521225,0.00023897,2]
[392153251,1761216350150,-209.6865195,0.00024707,2]
[392153252,1761216350171,-445.00322776,0.00024741,2]
[392153254,1761216412085,-525.91677224,0.00024741,2]
[392153255,1761216412106,-195.0,0.00024774,2]
[392153256,1761216412126,-18.81482712,0.00024774,2]
[392153257,1761216428095,-228.57153574,0.00024774,2]
[392153258,1761216438126,-874.20143044,0.00024774,2]
[392153259,1761216438147,-665.521087,0.00024807,2]
[392153260,1761216438168,-360.56266815,0.00024932,2]
[392153261,1761216439085,-139.43733185,0.00024932,2]
[392153262,1761216439104,-1010.83,0.00025,2]
[392153263,1761216439125,-195.0,0.00025202,2]
[392153264,1761216439145,-195.57,0.00025664,2]
[392153265,1761216439166,-482.85368563,0.00025865,2]
[392153266,1761216508306,-500.0,0.00023516,2]
[392153267,1761216508329,-53.77589332,0.00025865,2]
[392153268,1761216553183,-434.29042105,0.00025865,2]
[392153269,1761216553203,-300.0,0.00025976,2]
[392153270,1761216553224,-1200.0,0.00025976,2]
[392153271,1761216553243,-179.0,0.00026286,2]
[392153272,1761216553386,-283.0,0.00026286,2]
[392153273,1761216553408,-1200.20522109,0.00026287,2]
[392153274,1761216553427,-195.0,0.00026287,2]
[392153275,1761216553446,-970.92,0.0002699,2]
[392153276,1761216553464,-195.0,0.00027215,2]
[392153277,1761216553483,-2500.0,0.00027215,2]
[392153278,1761216553502,-318.21011197,0.00027215,2]
[392153279,1761216553521,-2351.90499891,0.00027251,2]
[392153280,1761216553541,-420.0,0.00028112,2]
[392153281,1761216553560,-970.92,0.00028114,2]
[392153282,1761216553579,-1215.0,0.00028238,2]
[392153283,1761216553597,-2500.0,0.00028452,120]
[392153284,1761216553616,-970.92,0.00029239,2]
[392153285,1761216553635,-150.68,0.00029386,2]
[392153286,1761216553656,-970.92,0.00030364,2]
[392153287,1761216553676,-275.0,0.00030425,2]
[392153288,1761216553697,-259.47030879,0.00030632,2]
[392153289,1761216553718,-151.0,0.00030648,2]
[392153290,1761216553740,-151.0,0.00030648,2]
[392153291,1761216553766,-151.0,0.00030648,2]
[392153292,1761216553786,-970.92,0.00031488,2]
[392153293,1761216553806,-970.92,0.00032613,2]
[392153294,1761216553826,-209.6865195,0.00033636,2]
[392153295,1761216553847,-970.92,0.00033737,2]
[392153296,1761216553868,-2038.51385483,0.000347,30]
[392153297,1761216553899,-970.92,0.00034862,2]
[392153298,1761216553921,-522.863,0.00035455,42]
[392153299,1761216553941,-970.92,0.00035986,2]
[392153300,1761216553961,-970.92,0.00037111,2]
[392153301,1761216553983,-500.0,0.000374,15]
[392153302,1761216554004,-500.0,0.000374,15]
[392153303,1761216554029,-500.0,0.000374,15]
[392153304,1761216554051,-500.0,0.000374,15]
[392153305,1761216554072,-500.0,0.000374,15]
[392153306,1761216554092,-500.0,0.000374,15]
[392153307,1761216554113,-500.0,0.000374,15]
[392153308,1761216554133,-472.67784987,0.000374,15]
[392153309,1761216554154,-441.40864998,0.000374,15]
[392153310,1761216554172,-2006.01,0.00037401,2]
[392153311,1761216554191,-175.69,0.00037467,2]
[392153312,1761216554211,-970.92,0.00038236,2]
[392153313,1761216554230,-250.0,0.00038531,2]
[392153314,1761216554249,-666.0,0.00038888,3]
[392153315,1761216554268,-10988.88,0.00039199,2]
[392153316,1761216554288,-970.92,0.0003936,2]
[392153317,1761216554307,-713.007043,0.00039452,120]
[392153318,1761216554327,-2561.684748,0.00039452,120]
[392153319,1761216554348,-591.256947,0.00039452,120]
[392153320,1761216554367,-590.273874,0.00039452,120]
[392153321,1761216554389,-2139.021129,0.00039452,120]
[392153322,1761216554410,-7685.054244,0.00039452,120]
[392153323,1761216554431,-150.0,0.00039674,2]
[392153324,1761216554451,-391.47,0.00039713,120]
[392153325,1761216554470,-19482.49,0.00039788,2]
[392153326,1761216554491,-251.0,0.0004,120]
[392153327,1761216554522,-970.92,0.00040485,2]
[392153328,1761216554550,-150.0,0.00040488,4]
[392153329,1761216554577,-150.0,0.00040488,4]
[392153330,1761216554604,-150.0,0.00040488,4]
[392153331,1761216554631,-150.0,0.00040488,4]
[392153332,1761216554654,-150.0,0.00040488,4]
[392153333,1761216554676,-150.0,0.00040488,4]
[392153334,1761216554702,-150.0,0.00040488,4]
[392153335,1761216554728,-150.0,0.00040488,4]
[392153336,1761216554787,208.32445664,0.00030648,2]
[392153355,1761216632207,-163.92,0.00040854,2]
[392153356,1761216632218,-195.0,0.00040927,120]
[392153357,1761216632227,-155.0,0.00041,90]
[392153358,1761216632237,-200.0,0.00041096,20]
[392153359,1761216632246,-195.0,0.00041271,120]
[392153360,1761216632255,-970.92,0.00041609,2]
[392153361,1761216632264,-209.6865195,0.00041695,2]
[392153362,1761216632275,-168.0,0.00041795,2]
[392153363,1761216632285,-433.0,0.00041823,7]
[392153364,1761216632296,-168.0,0.00041875,2]
[392153365,1761216632305,-433.0,0.00041966,2]
[392153366,1761216632314,-175.69,0.0004215,2]
[392153367,1761216632324,-433.0,0.00042652,2]
[392153368,1761216632337,-434.0,0.00042665,120]
[392153369,1761216632347,-970.92,0.00042734,2]
[392153370,1761216632356,-2369.0,0.00042734,120]
[392153371,1761216632366,-150.0,0.00042737,30]
[392153372,1761216632375,-215.88,0.00042865,2]
[392153373,1761216632385,-433.0,0.00042904,7]
[392153374,1761216632397,-1174.0,0.00043007,5]
[392153375,1761216632407,-324.63,0.00043008,30]
[392153376,1761216632416,-540.98,0.00043008,30]
[392153377,1761216632425,-167.59,0.00043008,30]
[392153378,1761216632434,-156.0,0.00043151,90]
[392153379,1761216632443,-433.0,0.00043234,2]
[392153380,1761216632453,-168.47,0.00043278,30]
[392153381,1761216632462,-336.87,0.00043278,30]
[392153382,1761216632471,-550.0,0.00043333,5]
[392153383,1761216632480,-433.0,0.00043334,120]
[392153384,1761216632489,-434.0,0.00043587,2]
[392153385,1761216632499,-433.0,0.00043768,2]
[392153386,1761216632508,-433.0,0.00043797,7]
[392153387,1761216632518,-433.0,0.00043803,2]
[392153388,1761216632530,-836.04,0.00043827,30]
[392153389,1761216632540,-200.0,0.00043975,50]
[392153390,1761216632549,-207.4,0.00043975,50]
[392153391,1761216632558,-215.0738,0.00043975,50]
[392153392,1761216632567,-223.0315306,0.00043975,50]
[392153393,1761216632577,-231.28369723,0.00043975,50]
[392153394,1761216632587,-239.84119403,0.00043975,50]
[392153395,1761216632597,-216.31,0.00044078,30]
[392153396,1761216632607,-277.45,0.00044078,30]
[392153397,1761216632617,-547.46,0.00044078,30]
[392153398,1761216632627,-315.72,0.00044078,30]
[392153399,1761216632638,-414.24,0.00044078,30]
[392153400,1761216632649,-168.47,0.00044078,30]
[392153401,1761216632659,-150.0,0.00044078,30]
[392153402,1761216632668,-150.0,0.00044078,30]
[392153403,1761216632677,-547.46,0.00044078,30]
[392153405,1761216632687,-168.47,0.00044078,30]
[392153407,1761216632696,-176.3,0.00044078,30]
[392153409,1761216632706,-150.0,0.00044078,30]
[392153410,1761216632714,-150.0,0.00044078,30]
[392153411,1761216632725,-414.24,0.00044078,30]
[392153412,1761216632734,-176.3,0.00044078,30]
[392153413,1761216632743,-547.46,0.00044078,30]
[392153414,1761216632751,-168.47,0.00044078,30]
[392153415,1761216632761,-150.0,0.00044078,30]
[392153416,1761216632770,-150.0,0.00044078,30]
[392153417,1761216632779,-414.24,0.00044078,30]
[392153418,1761216632789,-168.47,0.00044078,30]
[392153419,1761216632802,-547.46,0.00044078,30]
[392153420,1761216632812,-414.24,0.00044078,30]
[392153421,1761216632821,-150.0,0.00044078,30]
[392153422,1761216632831,-547.46,0.00044078,30]
[392153423,1761216632840,-168.47,0.00044078,30]
[392153424,1761216632849,-547.46,0.00044078,30]
[392153425,1761216632859,-168.47,0.00044078,30]
[392153426,1761216632868,-547.46,0.00044078,30]
[392153427,1761216632878,-547.46,0.00044078,30]
[392153428,1761216632887,-433.0,0.00044145,2]
[392153429,1761216632897,-500.0,0.000444,16]
[392153430,1761216632907,-1000.0,0.000445,16]
[392153431,1761216632916,-278.9521,0.00044731,2]
[392153432,1761216632925,-1000.0,0.00044731,120]
[392153433,1761216632935,-2131.8036,0.00044731,2]
[392153434,1761216632945,-233.6499,0.00044731,2]
[392153435,1761216632954,-2990.3265,0.00044731,2]
[392153436,1761216632963,-1000.0,0.00044731,2]
[392153437,1761216632974,-2500.0,0.00044731,2]
[392153438,1761216632983,-4058.8742,0.00044731,2]
[392153439,1761216632993,-2210.52837507,0.00044739,15]
[392153440,1761216633003,-879.50225953,0.00044741,2]
[392153441,1761216633012,-2210.52837503,0.00044757,15]
[392153442,1761216633022,-2210.52837503,0.00044775,15]
[392153443,1761216633032,-2210.52837503,0.00044793,15]
[392153444,1761216633042,-166.27011542,0.000448,28]
[392153445,1761216633052,-2210.52837503,0.00044811,15]
[392153446,1761216633061,-2210.52837503,0.00044828,15]
[392153447,1761216633071,-433.0,0.00044829,2]
[392153448,1761216633080,-500.0,0.0004483,120]
[392153449,1761216633090,-500.0,0.0004483,120]
[392153450,1761216633099,-500.0,0.0004483,120]
[392153451,1761216633109,-500.0,0.0004483,120]
[392153452,1761216633119,-500.0,0.0004483,120]
[392153453,1761216633128,-500.0,0.0004483,120]
[392153454,1761216633138,-500.0,0.0004483,120]
[392153455,1761216633147,-500.0,0.0004483,120]
[392153456,1761216633157,-500.0,0.00044839,120]
[392153457,1761216633167,-500.0,0.00044839,120]
[392153458,1761216633176,-248.07604333,0.00044839,120]
[392153459,1761216633186,-500.0,0.00044839,120]
[392153460,1761216633195,-500.0,0.00044839,120]
[392153461,1761216633205,-500.0,0.00044839,120]
[392153462,1761216633216,-500.0,0.00044839,120]
[392153463,1761216633226,-500.0,0.00044839,120]
[392153464,1761216633236,-500.0,0.00044839,120]
[392153465,1761216633245,-500.0,0.00044839,120]
[392153466,1761216633254,-500.0,0.00044839,30]
[392153467,1761216633265,-500.0,0.00044839,120]
[392153468,1761216633275,-500.0,0.00044839,30]
[392153469,1761216633284,-500.0,0.00044839,120]
[392153470,1761216633294,-500.0,0.00044839,120]
[392153471,1761216633303,-500.0,0.00044839,120]
[392153472,1761216633312,-500.0,0.00044839,120]
[392153473,1761216633321,-500.0,0.00044839,120]
[392153474,1761216633331,-500.0,0.00044839,60]
[392153475,1761216633340,-500.0,0.00044839,120]
[392153476,1761216633350,-500.0,0.00044839,120]
[392153477,1761216633359,-2210.52837503,0.00044846,15]
[392153478,1761216633368,-166.31098784,0.00044862,15]
[392153479,1761216633377,-2210.52837503,0.00044864,15]
[392153480,1761216633387,-3110.12081,0.0004487,25]
[392153481,1761216633396,-500.0,0.0004487,120]
[392153482,1761216633406,-500.0,0.0004487,120]
[392153483,1761216633416,-500.0,0.0004487,120]
[392153484,1761216633425,-189.28,0.0004487,120]
[392153485,1761216633434,-500.0,0.0004487,120]
[392153486,1761216633443,-1995.93,0.0004487,120]
[392153487,1761216633453,-1182.99,0.0004487,120]
[392153488,1761216633462,-500.0,0.0004487,120]
[392153489,1761216633471,-500.0,0.0004487,120]
[392153490,1761216633480,-500.0,0.0004487,120]
[392153491,1761216633490,-500.0,0.0004487,120]
[392153492,1761216633499,-500.0,0.0004487,120]
[392153493,1761216633508,-500.0,0.0004487,120]
[392153494,1761216633517,-500.0,0.0004487,120]
[392153495,1761216633527,-500.0,0.0004487,120]
[392153496,1761216633536,-500.0,0.0004487,120]
[392153497,1761216633545,-1018.58,0.0004487,120]
[392153498,1761216633554,-1683.63,0.0004487,30]
[392153499,1761216633563,-500.0,0.0004487,120]
[392153500,1761216633572,-192.44,0.0004487,120]
[392153501,1761216633582,-500.0,0.0004487,120]
[392153502,1761216633591,-1617.25,0.0004487,120]
[392153503,1761216633600,-500.0,0.0004487,120]
[392153504,1761216633609,-5024.13,0.0004487,120]
[392153505,1761216633618,-500.0,0.0004487,120]
[392153506,1761216633627,-500.0,0.00044871,120]
[392153507,1761216633636,-500.0,0.00044871,120]
[392153508,1761216633645,-500.0,0.00044871,30]
[392153509,1761216633655,-500.0,0.00044871,120]
[392153510,1761216633664,-500.0,0.00044871,120]
[392153511,1761216633673,-500.0,0.00044871,120]
[392153512,1761216633682,-500.0,0.00044871,120]
[392153513,1761216633692,-500.0,0.00044871,120]
[392153514,1761216633701,-500.0,0.00044871,120]
[392153515,1761216633710,-745.74,0.00044871,120]
[392153516,1761216633719,-739.16,0.00044871,120]
[392153517,1761216633728,-500.0,0.00044871,120]
[392153518,1761216633737,-500.0,0.00044871,2]
[392153519,1761216633746,-500.0,0.00044871,120]
[392153520,1761216633756,-500.0,0.00044871,120]
[392153521,1761216633765,-508.52,0.00044871,120]
[392153522,1761216633775,-500.0,0.00044871,120]
[392153523,1761216633784,-584.86,0.00044871,120]
[392153524,1761216633796,-751.7,0.00044871,120]
[392153525,1761216633805,-500.0,0.00044871,120]
[392153526,1761216633815,-423.02601729,0.00044871,120]
[392153527,1761216633824,-650.46,0.00044871,120]
[392153528,1761216633834,-500.0,0.00044871,120]
[392153529,1761216633843,-500.0,0.00044871,120]
[392153530,1761216633852,-500.0,0.00044871,120]
[392153531,1761216633862,-500.0,0.00044871,120]
[392153532,1761216633871,-500.0,0.00044871,120]
[392153533,1761216633880,-500.0,0.00044871,120]
[392153534,1761216633890,-990.51,0.00044871,120]
[392153535,1761216633899,-500.0,0.00044872,120]
[392153536,1761216633908,-500.0,0.00044872,120]
[392153537,1761216633918,-500.0,0.00044872,120]
[392153538,1761216633928,-500.0,0.00044872,120]
[392153539,1761216633937,-500.0,0.00044872,120]
[392153540,1761216633947,-500.0,0.00044872,120]
[392153541,1761216633957,-151.31714779,0.00044872,120]
[392153542,1761216633966,-500.0,0.00044872,120]
[392153543,1761216633976,-500.0,0.00044872,120]
[392153544,1761216633985,-500.0,0.00044872,120]
[392153545,1761216633994,-630.37,0.00044872,120]
[392153546,1761216634003,-601.56,0.00044872,120]
[392153547,1761216634013,-677.87,0.00044872,120]
[392153548,1761216634022,-534.71,0.00044872,120]
[392153549,1761216634032,-500.0,0.00044872,120]
[392153550,1761216634041,-500.0,0.00044872,120]
[392153551,1761216634051,-500.0,0.00044872,120]
[392153552,1761216634060,-500.0,0.00044872,120]
[392153553,1761216634070,-500.0,0.00044872,2]
[392153554,1761216634079,-500.0,0.00044872,120]
[392153555,1761216634088,-500.0,0.00044872,120]
[392153556,1761216634097,-500.0,0.00044872,120]
[392153557,1761216634231,-500.0,0.00044872,120]
[392153558,1761216634240,-804.2,0.00044872,120]
[392153559,1761216634250,-500.0,0.00044872,120]
[392153560,1761216634260,-500.0,0.00044872,30]
[392153561,1761216634269,-500.0,0.00044872,120]
[392153562,1761216634278,-500.0,0.00044872,120]
[392153563,1761216634288,-500.0,0.00044872,120]
[392153564,1761216634298,-500.0,0.00044872,12]
[392153565,1761216634308,-500.0,0.00044872,120]
[392153566,1761216634317,-500.0,0.00044872,120]
[392153567,1761216634326,-500.0,0.00044872,120]
[392153568,1761216634335,-300.0,0.00044872,120]
[392153569,1761216634345,-500.0,0.00044872,120]
[392153570,1761216634354,-500.0,0.00044872,120]
[392153571,1761216634363,-500.0,0.00044872,120]
[392153572,1761216634372,-540.52,0.00044872,120]
[392153573,1761216634382,-500.0,0.00044872,120]
[392153574,1761216634391,-500.0,0.00044872,120]
[392153575,1761216634401,-510.31,0.00044872,120]
[392153576,1761216634410,-500.0,0.00044872,120]
[392153577,1761216634420,-524.86,0.00044872,120]
[392153578,1761216634429,-520.09,0.00044872,120]
[392153579,1761216634439,-500.0,0.00044872,120]
[392153580,1761216634448,-500.0,0.00044872,120]
[392153581,1761216634457,-645.82,0.00044872,120]
[392153582,1761216634466,-999.99,0.00044872,120]
[392153583,1761216634475,-528.79,0.00044872,120]
[392153584,1761216634485,-563.21,0.00044872,120]